[Event "Early-Titled-Tuesday-Blitz-February-27-2024"]
[Site "Chess.com"]
[Date "2024.02.27"]
[Round "2"]
[White "francyIM"]
[Black "ValeriyGrinev"]
[Result "0-1"]
[WhiteElo "2787"]
[BlackElo "2573"]
[TimeControl "180+1"]
[EndTime "8:17:23 PST"]
[Termination "ValeriyGrinev won on time"]

1. d4 {[%clk 0:02:09.8]} 1... d5 {[%clk 0:02:57.9]} 2. Bf4 {[%clk 0:02:04.2]}
2... e6 {[%clk 0:02:57.6]} 3. e3 {[%clk 0:02:04.8]} 3... Nf6 {[%clk 0:02:56.5]}
4. c3 {[%clk 0:02:04.9]} 4... Bd6 {[%clk 0:02:56.5]} 5. Bg3 {[%clk 0:02:02.8]}
5... O-O {[%clk 0:02:55.3]} 6. Nd2 {[%clk 0:02:02.8]} 6... c5 {[%clk 0:02:54.3]}
7. Bd3 {[%clk 0:02:03.2]} 7... Qc7 {[%clk 0:02:54.2]} 8. Bh4 {[%clk 0:01:52]}
8... Nbd7 {[%clk 0:02:49.9]} 9. f4 {[%clk 0:01:50.8]} 9... cxd4 {[%clk
0:02:44.7]} 10. cxd4 {[%clk 0:01:51.7]} 10... b6 {[%clk 0:02:38.6]} 11. Ngf3
{[%clk 0:01:50.8]} 11... a5 {[%clk 0:02:38.3]} 12. Rc1 {[%clk 0:01:49.7]} 12...
Qa7 {[%clk 0:02:35.3]} 13. Ne5 {[%clk 0:01:34.5]} 13... Ba6 {[%clk 0:02:30.8]}
14. Bxa6 {[%clk 0:01:24.2]} 14... Qxa6 {[%clk 0:02:30.4]} 15. Qe2 {[%clk
0:01:23.7]} 15... Qxe2+ {[%clk 0:02:24.5]} 16. Kxe2 {[%clk 0:01:24]} 16... Rfc8
{[%clk 0:02:24.6]} 17. Bxf6 {[%clk 0:01:19.7]} 17... Nxf6 {[%clk 0:02:22.3]} 18.
a3 {[%clk 0:01:19.8]} 18... Kf8 {[%clk 0:02:20.7]} 19. h3 {[%clk 0:01:17]} 19...
Bxe5 {[%clk 0:02:17]} 20. dxe5 {[%clk 0:01:15.3]} 20... Nd7 {[%clk 0:02:17.9]}
21. Nf3 {[%clk 0:01:13.9]} 21... Nc5 {[%clk 0:02:15.3]} 22. Nd4 {[%clk
0:01:12.2]} 22... Ne4 {[%clk 0:02:15.5]} 23. Rhe1 {[%clk 0:01:10.6]} 23... Rc5
{[%clk 0:02:13.1]} 24. Rc2 {[%clk 0:01:05.3]} 24... Rxc2+ {[%clk 0:02:11]} 25.
Nxc2 {[%clk 0:01:06.2]} 25... Rc8 {[%clk 0:02:11]} 26. Nd4 {[%clk 0:01:06.5]}
26... Ke7 {[%clk 0:02:08.6]} 27. g4 {[%clk 0:01:05.7]} 27... f6 {[%clk
0:02:08.2]} 28. exf6+ {[%clk 0:01:04.8]} 28... gxf6 {[%clk 0:02:09.1]} 29. Kf3
{[%clk 0:00:58.3]} 29... e5 {[%clk 0:02:06.7]} 30. Nf5+ {[%clk 0:00:58.1]} 30...
Ke6 {[%clk 0:02:06.4]} 31. Re2 {[%clk 0:00:57.4]} 31... Rc1 {[%clk 0:02:05.3]}
32. Ng7+ {[%clk 0:00:54.3]} 32... Kd6 {[%clk 0:02:03.4]} 33. Nf5+ {[%clk
0:00:52.2]} 33... Kc5 {[%clk 0:02:02.5]} 34. Ng3 {[%clk 0:00:52.1]} 34... Nxg3
{[%clk 0:01:57.9]} 35. Kxg3 {[%clk 0:00:53]} 35... e4 {[%clk 0:01:54.3]} 36. Rd2
{[%clk 0:00:52.1]} 36... Rf1 {[%clk 0:01:53.7]} 37. Rf2 {[%clk 0:00:41.3]} 37...
Rxf2 {[%clk 0:01:37.5]} 38. Kxf2 {[%clk 0:00:42.2]} 38... d4 {[%clk 0:01:38.4]}
39. Ke2 {[%clk 0:00:12.5]} 39... d3+ {[%clk 0:01:37]} 40. Kd2 {[%clk 0:00:12.9]}
40... Kd6 {[%clk 0:00:59.6]} 41. Kc3 {[%clk 0:00:06.1]} 41... h5 {[%clk
0:00:54.4]} 42. Kd2 {[%clk 0:00:01.3]} 42... Ke6 {[%clk 0:00:47.5]} 43. b3
{[%clk 0:00:01.2]} 43... b5 {[%clk 0:00:46]} 44. Kc3 {[%clk 0:00:01.3]} 44...
Kf7 {[%clk 0:00:40.8]} 0-1

[Event "Early-Titled-Tuesday-Blitz-February-27-2024"]
[Site "Chess.com"]
[Date "2024.02.27"]
[Round "2"]
[White "bazar-wokzal"]
[Black "martinmena"]
[Result "1-0"]
[WhiteElo "2679"]
[BlackElo "2234"]
[TimeControl "180+1"]
[EndTime "8:17:24 PST"]
[Termination "bazar-wokzal won by resignation"]

1. e4 {[%clk 0:03:00.9]} 1... c6 {[%clk 0:02:59.6]} 2. d4 {[%clk 0:02:59.3]}
2... d5 {[%clk 0:03:00.5]} 3. f3 {[%clk 0:02:59.5]} 3... e6 {[%clk 0:02:56.2]}
4. Nc3 {[%clk 0:02:59.2]} 4... Bb4 {[%clk 0:02:49.7]} 5. Bf4 {[%clk 0:02:58.7]}
5... Nf6 {[%clk 0:02:48.2]} 6. e5 {[%clk 0:02:52.9]} 6... Nfd7 {[%clk
0:02:47.6]} 7. a3 {[%clk 0:02:49.2]} 7... Bxc3+ {[%clk 0:02:45.2]} 8. bxc3
{[%clk 0:02:50.1]} 8... c5 {[%clk 0:02:42.9]} 9. h4 {[%clk 0:02:48.3]} 9... Nc6
{[%clk 0:02:34.4]} 10. Qd2 {[%clk 0:02:46.5]} 10... Qa5 {[%clk 0:02:32.4]} 11.
Be3 {[%clk 0:02:41.5]} 11... cxd4 {[%clk 0:02:31]} 12. cxd4 {[%clk 0:02:41.1]}
12... Qxd2+ {[%clk 0:02:30.2]} 13. Kxd2 {[%clk 0:02:41.5]} 13... a6 {[%clk
0:02:26]} 14. a4 {[%clk 0:02:37.2]} 14... Na5 {[%clk 0:02:26.1]} 15. Nh3 {[%clk
0:02:31]} 15... Nb6 {[%clk 0:02:25.4]} 16. Nf4 {[%clk 0:02:17.8]} 16... Nbc4+
{[%clk 0:02:24.6]} 17. Bxc4 {[%clk 0:02:15.9]} 17... Nxc4+ {[%clk 0:02:25.5]}
18. Ke2 {[%clk 0:02:12.9]} 18... b6 {[%clk 0:02:15.9]} 19. h5 {[%clk 0:02:06.9]}
19... Bd7 {[%clk 0:02:09.7]} 20. h6 {[%clk 0:01:49.5]} 20... g6 {[%clk 0:02:09]}
21. Nh3 {[%clk 0:01:44.9]} 21... Nxe3 {[%clk 0:02:02.4]} 22. Kxe3 {[%clk
0:01:44.9]} 22... Ke7 {[%clk 0:02:00.4]} 23. Rhb1 {[%clk 0:01:41.8]} 23... Rab8
{[%clk 0:01:48.7]} 24. Ng5 {[%clk 0:01:40.3]} 24... f6 {[%clk 0:01:41.4]} 25.
exf6+ {[%clk 0:01:37.3]} 25... Kxf6 {[%clk 0:01:42.3]} 26. f4 {[%clk 0:01:37.5]}
26... Rhc8 {[%clk 0:01:39.7]} 27. Kd2 {[%clk 0:01:24.5]} 27... Rc4 {[%clk
0:01:27.6]} 28. c3 {[%clk 0:01:24.1]} 28... Bxa4 {[%clk 0:01:13]} 29. Nxh7+
{[%clk 0:01:09.3]} 29... Kf5 {[%clk 0:01:12.8]} 30. Ng5 {[%clk 0:01:09.2]} 30...
b5 {[%clk 0:00:20.4]} 31. Rh1 {[%clk 0:00:45.8]} 31... Rh8 {[%clk 0:00:15.5]}
32. h7 {[%clk 0:00:40.4]} 32... Rc7 {[%clk 0:00:15.7]} 33. Rae1 {[%clk
0:00:39.5]} 33... Re7 {[%clk 0:00:15.4]} 34. Re5+ {[%clk 0:00:37.1]} 34... Kf6
{[%clk 0:00:14.3]} 35. Rhe1 {[%clk 0:00:29.7]} 35... Rhxh7 {[%clk 0:00:03.5]}
36. Rxe6+ {[%clk 0:00:25.8]} 36... Rxe6 {[%clk 0:00:02.6]} 37. Rxe6+ {[%clk
0:00:25.8]} 37... Kf5 {[%clk 0:00:02.5]} 38. Re5+ {[%clk 0:00:25.8]} 38... Kxf4
{[%clk 0:00:02.6]} 39. Nxh7 {[%clk 0:00:26]} 39... a5 {[%clk 0:00:02.3]} 40. Nf6
{[%clk 0:00:25.8]} 40... b4 {[%clk 0:00:02.8]} 41. Nxd5+ {[%clk 0:00:25.7]}
41... Kg4 {[%clk 0:00:03.3]} 42. cxb4 {[%clk 0:00:25.6]} 42... Bb3 {[%clk
0:00:02.4]} 43. bxa5 {[%clk 0:00:25.1]} 1-0

[Event "Early-Titled-Tuesday-Blitz-February-27-2024"]
[Site "Chess.com"]
[Date "2024.02.27"]
[Round "2"]
[White "SlavenPastar"]
[Black "rezamahdavi2008"]
[Result "0-1"]
[WhiteElo "2601"]
[BlackElo "2896"]
[TimeControl "180+1"]
[EndTime "8:17:25 PST"]
[Termination "rezamahdavi2008 won by resignation"]

1. b3 {[%clk 0:03:00.9]} 1... Nf6 {[%clk 0:02:56.2]} 2. Bb2 {[%clk 0:03:01.4]}
2... g6 {[%clk 0:02:53.9]} 3. Nf3 {[%clk 0:03:00.9]} 3... Bg7 {[%clk 0:02:53.8]}
4. g3 {[%clk 0:03:01.7]} 4... b6 {[%clk 0:02:53.7]} 5. Bg2 {[%clk 0:03:02.1]}
5... Bb7 {[%clk 0:02:54.5]} 6. d4 {[%clk 0:03:02.1]} 6... O-O {[%clk 0:02:52.4]}
7. c4 {[%clk 0:03:02.1]} 7... e6 {[%clk 0:02:52.7]} 8. Nc3 {[%clk 0:03:00.8]}
8... Qe7 {[%clk 0:02:51.5]} 9. O-O {[%clk 0:02:58.2]} 9... d6 {[%clk 0:02:51.5]}
10. Qc2 {[%clk 0:02:56.9]} 10... c5 {[%clk 0:02:51.9]} 11. Rad1 {[%clk
0:02:44.2]} 11... Nc6 {[%clk 0:02:45.3]} 12. a3 {[%clk 0:02:15.9]} 12... Rfd8
{[%clk 0:02:41]} 13. d5 {[%clk 0:02:13.3]} 13... exd5 {[%clk 0:02:34.9]} 14.
cxd5 {[%clk 0:02:04.9]} 14... Ne5 {[%clk 0:02:27.6]} 15. Nxe5 {[%clk 0:02:01.8]}
15... Qxe5 {[%clk 0:02:28.5]} 16. Ne4 {[%clk 0:01:30.8]} 16... Qe7 {[%clk
0:02:26.8]} 17. Nxf6+ {[%clk 0:01:27.4]} 17... Bxf6 {[%clk 0:02:27.7]} 18. Bxf6
{[%clk 0:01:27.6]} 18... Qxf6 {[%clk 0:02:28.6]} 19. e4 {[%clk 0:01:27.1]} 19...
b5 {[%clk 0:02:16.8]} 20. f4 {[%clk 0:01:23.3]} 20... Rac8 {[%clk 0:02:14.3]}
21. Rfe1 {[%clk 0:01:13.9]} 21... Re8 {[%clk 0:02:13.3]} 22. Qe2 {[%clk
0:01:06.3]} 22... c4 {[%clk 0:02:08.5]} 23. bxc4 {[%clk 0:01:03.7]} 23... bxc4
{[%clk 0:02:06.8]} 24. e5 {[%clk 0:01:04.2]} 24... Qd8 {[%clk 0:01:37.8]} 25. e6
{[%clk 0:00:56.1]} 25... c3 {[%clk 0:01:35.2]} 26. Bh3 {[%clk 0:00:42.7]} 26...
f5 {[%clk 0:01:22.6]} 27. Qb5 {[%clk 0:00:28.1]} 27... Re7 {[%clk 0:01:20]} 28.
Bg2 {[%clk 0:00:24.2]} 28... c2 {[%clk 0:01:17.7]} 29. Rc1 {[%clk 0:00:23.9]}
29... Rc5 {[%clk 0:01:18.4]} 30. Qb3 {[%clk 0:00:23.1]} 30... Qa5 {[%clk
0:00:55.3]} 31. Re2 {[%clk 0:00:22.2]} 31... Rc3 {[%clk 0:00:52.5]} 32. Qb4
{[%clk 0:00:18.4]} 32... Qc7 {[%clk 0:00:52.7]} 33. Qb2 {[%clk 0:00:16.1]} 33...
Qc5+ {[%clk 0:00:51.6]} 34. Rf2 {[%clk 0:00:15.7]} 34... Rc7 {[%clk 0:00:45.3]}
35. Qb4 {[%clk 0:00:15.3]} 35... Qe3 {[%clk 0:00:39.7]} 36. Qb2 {[%clk
0:00:12.7]} 36... Rb3 {[%clk 0:00:37.8]} 37. Qa1 {[%clk 0:00:10.9]} 37... Rb1
{[%clk 0:00:33.9]} 38. Rxb1 {[%clk 0:00:08.2]} 38... cxb1=Q+ {[%clk 0:00:34.8]}
39. Qxb1 {[%clk 0:00:08.7]} 39... Rc1+ {[%clk 0:00:35.7]} 40. Qxc1 {[%clk
0:00:07.9]} 40... Qxc1+ {[%clk 0:00:36.6]} 41. Rf1 {[%clk 0:00:08.4]} 41... Qc5+
{[%clk 0:00:36.2]} 42. Kh1 {[%clk 0:00:07.2]} 42... Bxd5 {[%clk 0:00:37]} 43. e7
{[%clk 0:00:03.1]} 43... Kf7 {[%clk 0:00:35.4]} 44. Re1 {[%clk 0:00:02.2]} 44...
Ke8 {[%clk 0:00:34.6]} 45. Bxd5 {[%clk 0:00:02.2]} 45... Qxd5+ {[%clk
0:00:35.5]} 46. Kg1 {[%clk 0:00:02.9]} 46... Qc5+ {[%clk 0:00:35.5]} 0-1

[Event "Early-Titled-Tuesday-Blitz-February-27-2024"]
[Site "Chess.com"]
[Date "2024.02.27"]
[Round "2"]
[White "IlanSchnaider"]
[Black "killer_dreams"]
[Result "1-0"]
[WhiteElo "2744"]
[BlackElo "2497"]
[TimeControl "180+1"]
[EndTime "8:17:25 PST"]
[Termination "IlanSchnaider won on time"]

1. e4 {[%clk 0:03:00.9]} 1... c5 {[%clk 0:02:59.8]} 2. Nf3 {[%clk 0:03:00.9]}
2... d6 {[%clk 0:03:00.4]} 3. d4 {[%clk 0:03:00.3]} 3... cxd4 {[%clk 0:03:01.3]}
4. Nxd4 {[%clk 0:03:01.2]} 4... Nf6 {[%clk 0:03:01.6]} 5. Nc3 {[%clk 0:03:01.8]}
5... a6 {[%clk 0:03:02.2]} 6. Be3 {[%clk 0:03:01.5]} 6... e5 {[%clk 0:03:01.6]}
7. Nb3 {[%clk 0:02:58.6]} 7... Be7 {[%clk 0:03:02]} 8. h3 {[%clk 0:02:54.8]}
8... Be6 {[%clk 0:02:59.3]} 9. Qd2 {[%clk 0:02:54.7]} 9... Nbd7 {[%clk
0:02:59.2]} 10. g4 {[%clk 0:02:52]} 10... Rc8 {[%clk 0:02:58.9]} 11. g5 {[%clk
0:02:49.5]} 11... Nh5 {[%clk 0:02:50.8]} 12. Be2 {[%clk 0:02:44.5]} 12... Nf4
{[%clk 0:02:47.7]} 13. Bxf4 {[%clk 0:02:44.6]} 13... exf4 {[%clk 0:02:48.6]} 14.
h4 {[%clk 0:02:44.7]} 14... Ne5 {[%clk 0:02:26.8]} 15. Qxf4 {[%clk 0:02:40.4]}
15... h6 {[%clk 0:02:26.3]} 16. O-O-O {[%clk 0:02:12.8]} 16... hxg5 {[%clk
0:02:26]} 17. hxg5 {[%clk 0:02:13.2]} 17... Rxh1 {[%clk 0:01:59.5]} 18. Rxh1
{[%clk 0:02:12.8]} 18... Ng6 {[%clk 0:02:00.3]} 19. Qg3 {[%clk 0:02:00.5]} 19...
Bxg5+ {[%clk 0:01:59.4]} 20. Kb1 {[%clk 0:02:01.1]} 20... Bf4 {[%clk 0:01:46.7]}
21. Qg2 {[%clk 0:01:54.8]} 21... Qf6 {[%clk 0:01:36.6]} 22. Bg4 {[%clk
0:01:33.5]} 22... Be5 {[%clk 0:01:22.1]} 23. Bxe6 {[%clk 0:01:29.7]} 23... fxe6
{[%clk 0:01:23]} 24. Nd1 {[%clk 0:01:18.5]} 24... Kf7 {[%clk 0:01:20.7]} 25. c3
{[%clk 0:01:13.7]} 25... b5 {[%clk 0:01:00.2]} 26. Ne3 {[%clk 0:01:11]} 26...
Nf4 {[%clk 0:00:38.5]} 27. Qf3 {[%clk 0:01:04.1]} 27... Nd3 {[%clk 0:00:35]} 28.
Qh5+ {[%clk 0:00:59.5]} 28... Ke7 {[%clk 0:00:24.5]} 29. Qe2 {[%clk 0:00:38.2]}
29... Nf4 {[%clk 0:00:14]} 30. Qe1 {[%clk 0:00:22.2]} 30... Rf8 {[%clk
0:00:12.9]} 31. Rf1 {[%clk 0:00:17]} 31... Nd3 {[%clk 0:00:10.7]} 32. Qd2 {[%clk
0:00:17.2]} 32... Nxf2 {[%clk 0:00:04.2]} 33. Qc2 {[%clk 0:00:13.5]} 33... Qf3
{[%clk 0:00:03.6]} 34. Nd1 {[%clk 0:00:10.4]} 34... Bg3 {[%clk 0:00:03.8]} 35.
Nd4 {[%clk 0:00:09.3]} 35... Qf4 {[%clk 0:00:02.8]} 36. Ne2 {[%clk 0:00:07.7]}
36... Qxe4 {[%clk 0:00:02.5]} 37. Nxg3 {[%clk 0:00:07.5]} 1-0

[Event "Early-Titled-Tuesday-Blitz-February-27-2024"]
[Site "Chess.com"]
[Date "2024.02.27"]
[Round "2"]
[White "anasta10"]
[Black "Iuckyducky"]
[Result "1-0"]
[WhiteElo "2539"]
[BlackElo "2310"]
[TimeControl "180+1"]
[EndTime "8:17:25 PST"]
[Termination "anasta10 won by resignation"]

1. Nf3 {[%clk 0:03:00.9]} 1... Nf6 {[%clk 0:00:38.5]} 2. c4 {[%clk 0:02:58.7]}
2... e6 {[%clk 0:00:38.6]} 3. Nc3 {[%clk 0:02:59.3]} 3... d5 {[%clk 0:00:38.7]}
4. d4 {[%clk 0:02:59.3]} 4... dxc4 {[%clk 0:00:38.9]} 5. Bg5 {[%clk 0:02:59.7]}
5... Be7 {[%clk 0:00:39.3]} 6. e3 {[%clk 0:02:59.8]} 6... h6 {[%clk 0:00:39.8]}
7. Bh4 {[%clk 0:02:59.5]} 7... O-O {[%clk 0:00:40.4]} 8. Bxc4 {[%clk 0:02:59.8]}
8... c5 {[%clk 0:00:41.1]} 9. O-O {[%clk 0:02:59.9]} 9... Nc6 {[%clk 0:00:41.3]}
10. dxc5 {[%clk 0:02:59.8]} 10... Bxc5 {[%clk 0:00:41.1]} 11. Qxd8 {[%clk
0:02:59]} 11... Rxd8 {[%clk 0:00:42]} 12. Rac1 {[%clk 0:02:59.1]} 12... g5
{[%clk 0:00:40.4]} 13. Bg3 {[%clk 0:02:58.6]} 13... a6 {[%clk 0:00:40.5]} 14. h4
{[%clk 0:02:55.8]} 14... g4 {[%clk 0:00:39.9]} 15. Ne5 {[%clk 0:02:54.1]} 15...
Nxe5 {[%clk 0:00:39.9]} 16. Bxe5 {[%clk 0:02:55]} 16... Be7 {[%clk 0:00:38.1]}
17. Rfd1 {[%clk 0:02:49.3]} 17... b5 {[%clk 0:00:36.9]} 18. Be2 {[%clk
0:02:48.7]} 18... Bb7 {[%clk 0:00:37]} 19. Bc7 {[%clk 0:02:32.4]} 19... Rxd1+
{[%clk 0:00:32.2]} 20. Rxd1 {[%clk 0:02:33.3]} 20... Nd5 {[%clk 0:00:32.4]} 21.
Be5 {[%clk 0:01:59]} 21... Bxh4 {[%clk 0:00:31.1]} 22. Bxg4 {[%clk 0:01:58.6]}
22... Rd8 {[%clk 0:00:26.9]} 23. Ne2 {[%clk 0:01:39.1]} 23... Kf8 {[%clk
0:00:21.8]} 24. Bf3 {[%clk 0:01:30.1]} 24... Bc8 {[%clk 0:00:17.8]} 25. a3
{[%clk 0:01:07.6]} 25... Nb6 {[%clk 0:00:13]} 26. Bd4 {[%clk 0:01:03]} 26... Nc4
{[%clk 0:00:11.4]} 27. Rc1 {[%clk 0:01:03.2]} 27... Nd2 {[%clk 0:00:06.5]} 28.
Bh5 {[%clk 0:00:50.9]} 28... Ne4 {[%clk 0:00:05.8]} 29. g3 {[%clk 0:00:48.8]}
29... Be7 {[%clk 0:00:05.9]} 30. Rc7 {[%clk 0:00:46.8]} 30... Ke8 {[%clk
0:00:06]} 31. Nc3 {[%clk 0:00:39.5]} 31... Ng5 {[%clk 0:00:04.8]} 32. f4 {[%clk
0:00:32.4]} 32... Bd6 {[%clk 0:00:04.8]} 33. Ra7 {[%clk 0:00:27.9]} 33... Bb8
{[%clk 0:00:05.4]} 34. Ra8 {[%clk 0:00:26.2]} 34... Nh3+ {[%clk 0:00:05]} 35.
Kh2 {[%clk 0:00:25.7]} 35... e5 {[%clk 0:00:05.5]} 36. fxe5 {[%clk 0:00:20.3]}
36... Bc7 {[%clk 0:00:03.7]} 37. Rxc8 {[%clk 0:00:17.9]} 37... Rxc8 {[%clk
0:00:04.6]} 38. Kxh3 {[%clk 0:00:18.4]} 38... a5 {[%clk 0:00:03.8]} 39. e6
{[%clk 0:00:18.3]} 39... b4 {[%clk 0:00:02.8]} 40. Bxf7+ {[%clk 0:00:18.2]}
40... Ke7 {[%clk 0:00:02.6]} 41. Bc5+ {[%clk 0:00:18.1]} 41... Kf6 {[%clk
0:00:03.1]} 42. axb4 {[%clk 0:00:18.2]} 42... axb4 {[%clk 0:00:03.3]} 43. Nd5+
{[%clk 0:00:18.8]} 43... Ke5 {[%clk 0:00:02.8]} 44. Nxc7 {[%clk 0:00:18.9]}
44... Rxc7 {[%clk 0:00:03.7]} 45. e7 {[%clk 0:00:19.6]} 1-0

[Event "Early-Titled-Tuesday-Blitz-February-27-2024"]
[Site "Chess.com"]
[Date "2024.02.27"]
[Round "2"]
[White "doctorcristian"]
[Black "Kazancev_Valerij_M"]
[Result "1-0"]
[WhiteElo "2596"]
[BlackElo "2369"]
[TimeControl "180+1"]
[EndTime "8:17:26 PST"]
[Termination "doctorcristian won on time"]

1. d4 {[%clk 0:02:43.2]} 1... g6 {[%clk 0:02:59.3]} 2. e4 {[%clk 0:02:42.5]}
2... Bg7 {[%clk 0:02:58.9]} 3. Nc3 {[%clk 0:02:41.8]} 3... e6 {[%clk 0:02:59.2]}
4. Be3 {[%clk 0:02:40.5]} 4... Ne7 {[%clk 0:02:59.3]} 5. Qd2 {[%clk 0:02:40.5]}
5... h6 {[%clk 0:02:59]} 6. O-O-O {[%clk 0:02:39.4]} 6... a6 {[%clk 0:02:57.9]}
7. h4 {[%clk 0:02:38.5]} 7... d5 {[%clk 0:02:57.2]} 8. h5 {[%clk 0:02:36.9]}
8... g5 {[%clk 0:02:54.6]} 9. f4 {[%clk 0:02:35.5]} 9... g4 {[%clk 0:02:48.7]}
10. f5 {[%clk 0:02:24.8]} 10... exf5 {[%clk 0:02:45.3]} 11. exd5 {[%clk
0:02:19]} 11... Nxd5 {[%clk 0:02:43.4]} 12. Nxd5 {[%clk 0:02:19.2]} 12... Qxd5
{[%clk 0:02:38.7]} 13. c4 {[%clk 0:02:19.4]} 13... Qd8 {[%clk 0:02:24.3]} 14.
Ne2 {[%clk 0:02:16.1]} 14... Nc6 {[%clk 0:02:22.2]} 15. g3 {[%clk 0:02:07.8]}
15... Qf6 {[%clk 0:01:39.3]} 16. Bg2 {[%clk 0:02:04.7]} 16... O-O {[%clk
0:01:38]} 17. d5 {[%clk 0:01:53.9]} 17... Ne5 {[%clk 0:01:37.7]} 18. Bd4 {[%clk
0:01:48.4]} 18... Bd7 {[%clk 0:01:13.5]} 19. Nf4 {[%clk 0:01:41]} 19... Rae8
{[%clk 0:01:10.6]} 20. Qc3 {[%clk 0:01:39.3]} 20... Qg5 {[%clk 0:01:07.8]} 21.
c5 {[%clk 0:01:33.3]} 21... Bb5 {[%clk 0:00:52.4]} 22. Kb1 {[%clk 0:01:22.5]}
22... Nd7 {[%clk 0:00:27.3]} 23. d6 {[%clk 0:01:08.7]} 23... c6 {[%clk
0:00:16.7]} 24. b3 {[%clk 0:00:58.5]} 24... Bxd4 {[%clk 0:00:14.8]} 25. Qxd4
{[%clk 0:00:53.8]} 25... Qf6 {[%clk 0:00:14.5]} 26. Qxf6 {[%clk 0:00:49]} 26...
Nxf6 {[%clk 0:00:14.7]} 27. Rd2 {[%clk 0:00:48.4]} 27... a5 {[%clk 0:00:13.5]}
28. a4 {[%clk 0:00:44.5]} 28... Ba6 {[%clk 0:00:12.9]} 29. d7 {[%clk 0:00:31.9]}
29... Rd8 {[%clk 0:00:11.5]} 30. Rhd1 {[%clk 0:00:32.5]} 30... Kg7 {[%clk
0:00:08.7]} 31. Kb2 {[%clk 0:00:30.4]} 31... Ne4 {[%clk 0:00:02.5]} 32. Bxe4
{[%clk 0:00:29.2]} 32... fxe4 {[%clk 0:00:03.2]} 33. Rd6 {[%clk 0:00:28.6]}
33... e3 {[%clk 0:00:03.5]} 34. Re1 {[%clk 0:00:22.1]} 34... e2 {[%clk
0:00:02.7]} 35. Nxe2 {[%clk 0:00:21.8]} 35... Bd3 {[%clk 0:00:02.5]} 36. Nd4
{[%clk 0:00:18.1]} 1-0

[Event "Early-Titled-Tuesday-Blitz-February-27-2024"]
[Site "Chess.com"]
[Date "2024.02.27"]
[Round "2"]
[White "Pikku_Myy73"]
[Black "Tashik"]
[Result "1-0"]
[WhiteElo "2271"]
[BlackElo "2497"]
[TimeControl "180+1"]
[EndTime "8:17:26 PST"]
[Termination "Pikku_Myy73 won on time"]

1. d4 {[%clk 0:03:00.9]} 1... Nf6 {[%clk 0:02:59.3]} 2. c4 {[%clk 0:02:57.7]}
2... e6 {[%clk 0:02:59.6]} 3. Nf3 {[%clk 0:02:57.4]} 3... d5 {[%clk 0:02:59.1]}
4. g3 {[%clk 0:02:57.2]} 4... Bb4+ {[%clk 0:02:58.4]} 5. Bd2 {[%clk 0:02:56.8]}
5... Be7 {[%clk 0:02:59]} 6. Bg2 {[%clk 0:02:56.5]} 6... O-O {[%clk 0:02:59.6]}
7. O-O {[%clk 0:02:56.8]} 7... Ne4 {[%clk 0:02:51.7]} 8. Qc2 {[%clk 0:02:53.4]}
8... Nd7 {[%clk 0:02:49.4]} 9. Nc3 {[%clk 0:02:49.1]} 9... Nxd2 {[%clk
0:02:48.4]} 10. Nxd2 {[%clk 0:02:48.4]} 10... c6 {[%clk 0:02:46.5]} 11. e4
{[%clk 0:02:46.3]} 11... dxc4 {[%clk 0:02:36.8]} 12. Nxc4 {[%clk 0:02:44.5]}
12... b5 {[%clk 0:02:36.5]} 13. Nd2 {[%clk 0:02:26.7]} 13... Nb6 {[%clk
0:02:13.3]} 14. Nf3 {[%clk 0:02:08.5]} 14... Bb7 {[%clk 0:02:01.5]} 15. Rfd1
{[%clk 0:02:07.6]} 15... Rc8 {[%clk 0:01:33]} 16. Qe2 {[%clk 0:02:00.8]} 16...
b4 {[%clk 0:01:29.4]} 17. Nb1 {[%clk 0:01:57.9]} 17... Qc7 {[%clk 0:01:25]} 18.
Nbd2 {[%clk 0:01:54.5]} 18... c5 {[%clk 0:01:24.2]} 19. Rac1 {[%clk 0:01:50.4]}
19... Qb8 {[%clk 0:01:24]} 20. dxc5 {[%clk 0:01:20.9]} 20... Bxc5 {[%clk
0:01:22.3]} 21. e5 {[%clk 0:01:13.5]} 21... Qa8 {[%clk 0:01:16.2]} 22. Nh4
{[%clk 0:00:58.3]} 22... Bxg2 {[%clk 0:01:10.1]} 23. Nxg2 {[%clk 0:00:59.2]}
23... Nd5 {[%clk 0:01:06.3]} 24. Ne4 {[%clk 0:00:53.6]} 24... Be7 {[%clk
0:01:05.7]} 25. Qg4 {[%clk 0:00:19.8]} 25... Rxc1 {[%clk 0:00:53.2]} 26. Rxc1
{[%clk 0:00:19.9]} 26... Rc8 {[%clk 0:00:53.8]} 27. Rd1 {[%clk 0:00:19.4]} 27...
Rd8 {[%clk 0:00:27.4]} 28. Rc1 {[%clk 0:00:15.3]} 28... Qb8 {[%clk 0:00:26.2]}
29. Qh5 {[%clk 0:00:11.2]} 29... g6 {[%clk 0:00:22.2]} 30. Qf3 {[%clk
0:00:08.4]} 30... Qxe5 {[%clk 0:00:21.8]} 31. Re1 {[%clk 0:00:06.4]} 31... Qxb2
{[%clk 0:00:21.2]} 32. h4 {[%clk 0:00:05.7]} 32... h5 {[%clk 0:00:20]} 33. Nf4
{[%clk 0:00:05]} 33... Nc3 {[%clk 0:00:13.7]} 34. Ng5 {[%clk 0:00:03.6]} 34...
Bxg5 {[%clk 0:00:11]} 35. hxg5 {[%clk 0:00:04.5]} 35... Qc2 {[%clk 0:00:03.1]}
36. Nxe6 {[%clk 0:00:03.3]} 1-0